Cogmind - Beta 13 @@@ ROGUE MODE // 2024.04.16 @ 10:27:00 Player: SVIT13 Result: Self-destructed Performance ------------- Evolutions (1) 500 Regions Visited (3) 600 Robots Destroyed (30) 150 Value Destroyed (668) 668 Prototype IDs (0) 0 Alien Tech Used (0) 0 Bonus (0) 0 TOTAL SCORE: 1918 Bonus ------- None Cogmind --------- Core Integrity 324/400 Matter 300/300 Energy 160/160 System Corruption 1% Temperature Critical (621) Movement Rolling (130) Ox2 Location -9/Materials Parts ------- > --- POWER (1) -------- Light Nuclear Core > --- PROPULSION (3) --- Light Treads Light Treads Compact Wheel > --- UTILITY (3) ------ Large Storage Unit Sensor Array Hardened Light Armor Plating > --- WEAPON (2) ------- Particle Cannon Particle Cannon > --- INVENTORY (15) --- Ion Engine Light Ion Engine Improved Ion Engine Wheel Heat Sink Cooling System Visual Processing Unit Improved Terrain Scanner Power Shielding Light Armor Plating Heavy EM Pulse Gun Heavy EM Pulse Gun Light Assault Rifle Katana Peak State ------------ > --- POWER ------------ Light Nuclear Core > --- PROPULSION ------- Light Treads Wheel Compact Wheel > --- UTILITY ---------- Large Storage Unit Sensor Array Improved Terrain Scanner > --- WEAPON ----------- Heavy EM Pulse Gun Heavy EM Pulse Gun > --- INVENTORY -------- Ion Engine Ion Engine Light Ion Engine Cooling System Visual Processing Unit Power Shielding Particle Cannon Assault Rifle Light Assault Rifle EMP Trap EMP Trap [Rating: 16] Favorites ----------- Power Ion Engine Engine Ion Engine Power Core Light Nuclear Core Propulsion Wheel Treads Light Treads Wheel Wheel Utility Sensor Array Device Sensor Array Storage Large Storage Unit Protection Hardened Light Armor Plating Weapon Particle Cannon Energy Gun EM Pulse Gun Energy Cannon Particle Cannon Ballistic Gun Assault Rifle Special Weapon Mining Laser Build | -11 -10 -10 -9 ------- Run | Yrd Mat Min Mat Slots Evolved 2 | . . . 2 Power . | . . . . Propulsion 1 | . . . 1 Utility 1 | . . . 1 Weapon . | . . . . Parts Attached 29 | 7 8 2 12 Power 2 | 1 . . 1 Engine 1 | 1 . . . Core 1 | . . . 1 Reactor . | . . . . Propulsion 11 | 2 4 1 4 Treads 3 | . . . 3 Leg . | . . . . Wheel 8 | 2 4 1 1 Hover . | . . . . Flight . | . . . . Utility 6 | 2 2 . 2 Device 3 | 1 1 . 1 Storage 2 | 1 1 . . Processor . | . . . . Hackware . | . . . . Protection 1 | . . . 1 Artifact . | . . . . Weapon 10 | 2 2 1 5 Energy Gun 4 | 1 1 . 2 Energy Cannon 3 | . . . 3 Ballistic Gun 2 | 1 1 . . Ballistic Cannon . | . . . . Launcher . | . . . . Special Weapon 1 | . . 1 . Impact Weapon . | . . . . Slashing Weapon . | . . . . Piercing Weapon . | . . . . Special Melee Weapon . | . . . . Unidentified Prototypes . | . . . . Parts Lost 6 | . 1 4 1 Power . | . . . . Propulsion 4 | . 1 2 1 Utility . | . . . . Weapon 2 | . . 2 . Highest Loss Streak 2 | . 1 2 1 To Critical Strikes . | . . . . Average Slot Usage (%) 93 | . 99 86 92 Engine 7 | . 14 14 . Core 5 | . . . 10 Treads 5 | . . . 10 Wheel 20 | . 27 21 15 Device 13 | . 14 14 12 Storage 12 | . 14 14 11 Protection 4 | . . . 9 Energy Gun 5 | . 14 2 1 Energy Cannon 9 | . . . 19 Ballistic Gun 7 | . 14 14 . Naked Turns . | . . . . Heaviest Build 39 | 15 30 30 39 Greatest Support 32 | 32 32 20 26 Greatest Overweight (x) 2 | . 1 2 2 Average Overweight (x) . | . . 1 1 Largest Inventory Capacity 15 | 8 15 15 15 Average Capacity 13 | 7 11 15 15 Most Carried 15 | 8 9 11 15 Average Carried 8 | 3 7 9 10 Final Capacity 15 | 8 15 15 15 Final Carried 14 | 7 9 11 14 Class Distribution -------------------- 100% | Mutant Dominant Class ---------------- Mutant | -10/Materials Mutant | -10/Mines Mutant | -9/Materials Resources | -11 -10 -10 -9 ----------- Run | Yrd Mat Min Mat Matter Collected 654 | 271 153 77 153 Remotely . | . . . . Salvage Created 862 | 50 286 171 355 Parts 71 | 8 26 12 25 Haulers Intercepted . | . . . . Recyclers Shooed 2 | 1 1 . . Parts Field Recycled . | . . . . Retrieved Matter . | . . . . Parts Self-Destructed . | . . . . Prevented . | . . . . Kills | -11 -10 -10 -9 ------- Run | Yrd Mat Min Mat Combat Hostiles Destroyed 24 | . 7 7 10 Guns 14 | . 7 7 . Cannons 10 | . . . 10 Classes Destroyed 8 | 1 3 . 4 Worker 1 | . . . 1 Tunneler 3 | 2 1 . . Watcher 2 | . 2 . . Swarmer 11 | . 3 5 3 Grunt 10 | . 4 2 4 Brawler 1 | . . . 1 Duelist 1 | . . . 1 Sentry 1 | . . . 1 Best Kill Streak 4 | 2 4 2 3 Combat Bots Only 3 | . 3 2 3 Max Kills in Single Turn 2 | 1 1 1 2 Gunslinging . | . . . . Exploded . | . . . . Melee . | . . . . Uniques/NPCs Destroyed . | . . . . Combat | -11 -10 -10 -9 -------- Run | Yrd Mat Min Mat Hostile Shots Fired 127 | . 35 44 48 Missed 32 | . 10 7 15 Damage Taken 1000 | . 257 325 418 Core 207 | . 59 72 76 Absorbed by Shields . | . . . . Core Remaining (%) 73 | 100 . 47 . Volleys Fired 82 | 6 27 29 20 Largest 2 | 2 2 2 2 Hottest 136 | 70 70 120 136 Shots Fired 152 | 12 54 46 40 Gun 104 | 12 54 38 . Cannon 40 | . . . 40 Launcher . | . . . . Special 8 | . . 8 . Kinetic 62 | 6 27 29 . Thermal 56 | 6 2 8 40 Explosive . | . . . . Electromagnetic 34 | . 25 9 . Robot Hit Streak 11 | 7 4 11 8 Robot Miss Streak 3 | 1 3 3 3 Penetration Max . | . . . . Secondary Targets . | . . . . Shots Hit Robots 79 | 9 25 26 19 Core Hits 41 | 3 16 10 12 Critical Kills . | . . . . Critical Parts Destroyed . | . . . . Critical Strikes . | . . . . Melee Attacks . | . . . . Impact . | . . . . Slashing . | . . . . Piercing . | . . . . Sneak Attacks . | . . . . Combat Hostiles . | . . . . Follow-up Attacks . | . . . . Damage Inflicted 1242 | 114 359 361 408 Guns 738 | 114 359 265 . Cannons 408 | . . . 408 Explosions . | . . . . Melee . | . . . . Ramming . | . . . . Kinetic 409 | 52 180 177 . Thermal 578 | 62 12 96 408 Explosive . | . . . . Electromagnetic 255 | . 167 88 . Impact . | . . . . Slashing . | . . . . Piercing . | . . . . Highest Corruption 1 | . 1 1 1 Average Corruption 1 | . 1 1 1 Corruption Purged . | . . . . Corruption Blocked . | . . . . Effects 10 | . 4 1 5 Message Errors 2 | . . . 2 Matter Fused 1 | . 1 . . Heat Flow Errors 6 | . 2 1 3 Data Loss (major) 1 | . 1 . . Overload Shots . | . . . . Overflow Damage 4 | . . 4 . Projectiles 4 | . . 4 . Explosions . | . . . . Melee . | . . . . Knockbacks . | . . . . Impact . | . . . . Kinetic . | . . . . Secondary . | . . . . Self-Inflicted Damage . | . . . . Shots . | . . . . Rammed . | . . . . Targets Rammed . | . . . . Kicked . | . . . . Crushed . | . . . . Highest Temperature 685 | 56 263 178 685 Average Temperature 110 | 30 53 44 171 Received Heat Transfer 216 | . 102 54 60 Effects 4 | . . . 4 Energy Bleed 1 | . . . 1 Damage (minor) 2 | . . . 2 Damage (core) 1 | . . . 1 Siege Activations . | . . . . Robots Corrupted . | . . . . Combat Hostiles . | . . . . Parts Fried . | . . . . Impact Corruptions . | . . . . Robots Melted . | . . . . Combat Hostiles . | . . . . Parts Melted . | . . . . Heat Transferred 1162 | 185 37 200 740 Parts Sabotaged . | . . . . Parts Stolen . | . . . . Parts Stripped . | . . . . Power Chain Reactions . | . . . . Alert | -11 -10 -10 -9 ------- Run | Yrd Mat Min Mat Peak Influence 236 | 10 229 198 236 Initial 76 | . 6 5 76 Average 87 | 4 77 146 87 Maximum Alert Level 1 | . 1 . 1 Low Security (%) 94 | 100 85 100 98 Level 1 5 | . 14 . 1 Level 2 . | . . . . Level 3 . | . . . . Level 4 . | . . . . Level 5 . | . . . . High Security . | . . . . Max Security . | . . . . Squads Dispatched 4 | . 2 . 2 Investigation 1 | . . . 1 Extermination . | . . . . Reinforcement 3 | . 2 . 1 Assault . | . . . . Garrison . | . . . . Intercept . | . . . . Searches Triggered . | . . . . Construction Impeded . | . . . . Haulers Reinforced . | . . . . Active Scanning Responses . | . . . . Cargo Convoy Interrupts . | . . . . Stealth | -11 -10 -10 -9 --------- Run | Yrd Mat Min Mat Distress Signals 2 | . 1 . 1 Communications Jammed . | . . . . Distress Signals . | . . . . Times Spotted 32 | . 11 9 12 Peak Tracking Total 3 | . 3 3 3 Tactical Retreats 2 | . . 1 1 Traps | -11 -10 -10 -9 ------- Run | Yrd Mat Min Mat Traps Triggered . | . . . . Indirectly . | . . . . Trap Hack Attempts . | . . . . Triggered . | . . . . Disarmed . | . . . . Reprogrammed . | . . . . Reused . | . . . . Traps Extracted . | . . . . Installed 2 | . . . 2 Triggered . | . . . . Most Traps Carried 2 | . . 2 2 Machines | -11 -10 -10 -9 ---------- Run | Yrd Mat Min Mat Machines Disabled 1 | . . 1 . Max in Single Turn 1 | . . 1 . Machines Repaired . | . . . . Machines Dismantled . | . . . . Machines Sabotaged . | . . . . Overloaded Fab Kills . | . . . . Hacking | -11 -10 -10 -9 --------- Run | Yrd Mat Min Mat Machines Accessed 5 | . 3 . 2 Terminals 3 | . 2 . 1 Fabricators . | . . . . Repair Stations . | . . . . Recycling Units 1 | . 1 . . Scanalyzers 1 | . . . 1 Garrison Access . | . . . . Total Hacks 18 | . 13 . 5 Successful 13 | . 8 . 5 Failed 5 | . 5 . . Catastrophic 1 | . 1 . . Database Lockouts . | . . . . Manual . | . . . . Terminals 11 | . 9 . 2 Fabricators . | . . . . Repair Stations . | . . . . Recycling Units 4 | . 4 . . Scanalyzers 3 | . . . 3 Garrison Access . | . . . . Terminal Hacks 8 | . 6 . 2 Record 2 | . 2 . . Alert Level 3 | . 2 . 1 Unreport Threat 1 | . 1 . . Locate Traps 1 | . . . 1 Zone Layout 1 | . 1 . . Fabricator Hacks . | . . . . Repair Station Hacks . | . . . . Recycling Unit Hacks 2 | . 2 . . Recycle Component 1 | . 1 . . Process 1 | . 1 . . Scanalyzer 3 | . . . 3 Insert Component 2 | . . . 2 Analyze 1 | . . . 1 Garrison Access Hacks . | . . . . Unauthorized Hacks . | . . . . Terminals . | . . . . Fabricators . | . . . . Repair Stations . | . . . . Recycling Units . | . . . . Scanalyzers . | . . . . Garrison Access . | . . . . Data Cores Recovered . | . . . . Used . | . . . . Hacking Detections 3 | . 2 . 1 Full Trace Events 2 | . 1 . 1 Feedback Events 2 | . 1 . 1 Corruption 2 | . 1 . 1 Feedback Blocked . | . . . . Robot Schematics Acquired . | . . . . Robots Built . | . . . . Authchips . | . . . . Time . | . . . . Total Robot Build Rating . | . . . . Part Schematics Acquired 1 | . . . 1 Parts Built . | . . . . Authchips . | . . . . Time . | . . . . Total Part Build Rating . | . . . . Parts Repaired . | . . . . Time . | . . . . Parts Recycled 1 | . 1 . . Recycled Matter 57 | . 57 . . Retrieved Matter . | . . . . Retrieved Components . | . . . . Parts Scanalyzed 1 | . . . 1 Part Schematics Acquired 1 | . . . 1 Parts Damaged . | . . . . Bothacking | -11 -10 -10 -9 ------------ Run | Yrd Mat Min Mat Used RIF Installer . | . . . . Robots Hacked . | . . . . Non-combat . | . . . . Combat . | . . . . Robot Hacks Applied . | . . . . Relay Couplers Released . | . . . . Fabnet Peak Effective % . | . . . . Robots Rewired . | . . . . Allies Hacked . | . . . . Hacks Repelled . | . . . . Allies | -11 -10 -10 -9 -------- Run | Yrd Mat Min Mat Total Allies . | . . . . Largest Group . | . . . . Highest-Rated Group . | . . . . Highest-Rated Ally . | . . . . Total Orders . | . . . . Ally Attacks . | . . . . Total Damage . | . . . . Kills . | . . . . Allies Corrupted . | . . . . Allies Melted . | . . . . Intel | -11 -10 -10 -9 ------- Run | Yrd Mat Min Mat Robot Analysis Total . | . . . . Derelict Logs Recovered . | . . . . Drone Launches . | . . . . Drone Recoveries . | . . . . Exploration | -11 -10 -10 -9 ------------- Run | Yrd Mat Min Mat Turns Passed 1684 | 127 520 278 759 Spaces Moved 902 | 58 408 171 265 Core 2 | 2 . . . Treads 47 | . . . 47 Legs . | . . . . Wheels 853 | 56 408 171 218 Hover . | . . . . Flight . | . . . . Fastest Speed 50 | 50 80 95 105 Average Speed 108 | 98 93 103 138 Slowest Speed 240 | 100 105 110 240 Overloaded Moves . | . . . . Propulsion Burnouts . | . . . . Robots Hopped . | . . . . Cave-ins Triggered . | . . . . Exploration Rate (%) 30 | 5 55 43 17 Regions Visited 3 Branch Regions 1 Pre-discovered Areas . | . . . . Known Exits Taken . | . . . . Unknown Exits Taken 3 | 1 1 1 . Scrap Searched . | . . . . Spaces Dug . | . . . . Terrain Destroyed 3 | . . 3 . Melee . | . . . . Projectile 3 | . . 3 . AOE . | . . . . Terrain Rammed . | . . . . Walls Destroyed . | . . . . Machines Disabled . | . . . . Actions | -11 -10 -10 -9 --------- Run | Yrd Mat Min Mat Total 1434 | 116 493 209 616 Wait 369 | 30 38 4 297 Move 899 | 57 407 170 265 Hop . | . . . . Pick Up 41 | 15 8 4 14 Fast Attach . | . . . . Attach 18 | 7 2 2 7 Detach 2 | . 1 . 1 Swap 11 | . 6 . 5 Drop 10 | 1 4 . 5 Fire 82 | 6 27 29 20 Melee . | . . . . Ram . | . . . . Kick . | . . . . Crush . | . . . . Escape Stasis . | . . . . Rewire . | . . . . Trap 2 | . . . 2 Miscellaneous . | . . . . Route ------- -11/Scrapyard -10/Materials (discovered 2 exits: *Mat / [*Min]) -10/Mines (discovered 2 exits: *Mat x2) -9/Materials History --------- Turn | Location | Event 47 | -11/Scrapyard | Discovered new exit (range 16) 128 | -11/Scrapyard | Entered Materials 314 | -10/Materials | Build established: Mutant 431 | -10/Materials | Discovered new exit (range 6) 629 | -10/Materials | Discovered new exit (range 9) 648 | -10/Materials | Entered Mines 668 | -10/Mines | Met a Derelict bent on vengeance 788 | -10/Mines | Discovered new exit (range 5) 807 | -10/Mines | Core integrity fell below 50% 847 | -10/Mines | Found a hidden stash of uninstalled traps 917 | -10/Mines | Discovered new exit (range 8) 926 | -10/Mines | Entered Materials 926 | -9/Materials | Evolved 2 slots: Propulsion x1, Utility x1 1685 | -9/Materials | Self-destructed Last Messages --------------- 01586_ Acquired Lgt. Treads. 01588_ K-01 Serf collects debris. 01590_ Acquired Imp. Ion Engine. 01592_ Acquired Heat Sink. 01647_ System corrupted: Heat flow error (+279). 01650_ ALERT: Hostiles spotted, dispatching reinforcements to Terminal M008. 01669_ K-01 Serf cleans the Fusion Modulator. 01672_ G-34 Mercenary destroyed. 01673_ K-01 Serf cleans the Fusion Modulator. 01675_ G-34 Mercenary destroyed. 01677_ K-01 Serf collects debris. 01678_ K-01 Serf destroyed. 01680_ Overheating: Lrg. Storage Unit damaged (-129). 01680_ System corrupted: Heat flow error (+234). 01681_ Overheating: Energy bleed (-25). 01681_ Acquired 10 matter. 01684_ Acquired Wheel. 01685_ Overheating: Core damaged (-44). Map ----- +----------------------------------------------------+ | ??????????????????????????????????????########## | | ????????????????????????????????????????#??????# | | ?????????????????????????????????? ????????????# | | ???????????????????????????????????????????????# | | ????????????????????????????????????????#??????# | | ???????????????????????????????????????????????# | | ???????????????????????????????????????????????# | | ???????????????????????????????????????????????# | | ???????????????????????????????????????????????# | | ???????????????????????????????????????????????# | | ???????????????????????????????????????????????# | | ????????????????????????????????????????#??????# | | ?????????????????????? T ??????????????????????# | | ?????????????????????? ?????????????#?#??????# | | ?????????????????????? ???????????#??????????# | | ????????????????????###+###?????????#???????#??# | | ????????????????????#! !#????????????????????# | | ????????????????????# #???????????????????## | | ????????????????????# """=#????????????######### | | ????????????????????# """%#????????????# ## | | ????????????????????# """ #????????????#""" ## | | ????????????????????# =[#????????????#""" ## | | ????????????????????# """%#????????????#""" ## | | ????????????????????# """!#????????????# ## | | ????????????????????# """%########??????? ## | | ????????????????????# *@## ##########+### | | ????????????????????#= ## [ | | ????????????????????# + = % | | ????????????????????######## ? | | ???????????????????????????# ###+########## | | ???????????????????????????## ## """""???#### | | ????????????????????????????# ## """""??????? | | ????????????????????????????# ##[[[ """""??????? | | ????????????????????????????# ##[[ ??????? | | ????????????????????????????# ##[[ ?????? | | ????????????????????????????# ## ????? | | ????????????????????????????# + ????? | | ????????????????????????????##+##############????? | | ?????????????????????????????????????????????????? | | ?????????????????????????????????????????????????? | | ?????????????????????????????????????????????????? | | ?????????????????????????????????????????????????? | | ?????????????????????????????????????????????????? | | ?????????????????????????????????????????????????? | | ?????????????????????????????????????????????????? | | ?????????????????????????????????????????????????? | | ?????????????????????????????????????????????????? | | ?????????????????????????????????????????????????? | | ?????????????????????????????????????????????????? | | ?????????????????????????????????????????????????? | +----------------------------------------------------+ Best States ------------- Heat Dissipation 28 Energy Generation 14 Energy Capacity 250 Matter Stores 300 Matter Capacity 300 Sight Range 16 Robot Scan Range 14 Terrain Scan Range 16 Terrain Scan Density 10 Armor Coverage 150 Evasion (%) 44 Recoil Reduction 1 Item Schematics ----------------- Imp. Terrain Scanner | -9/Materials | Scanalyzed Robot Schematics ------------------ None Fabricated ------------ Nothing Alien Tech Used ----------------- None Achievements -------------- None Challenges ------------ None Game ------ Seed MiningCombatOptics Manual? 0 Play Time 00:36:41 Cumulative 4.9 hours Start 2024.04.16 @ 09:18:21 End 2024.04.16 @ 10:27:00 Sessions 3 Manual Loads 0 Difficulty Rogue Special Mode None Game No. 6 Rogue 6 Adventurer 0 Explorer 0 Win Type - Total 0 Types 0/0/0/0/0/0/0/0/0 Lore% 4 Gallery% 8 Achievement% 8 Wizard Run 0 Options --------- Layout 1 ASCII 0 Keyboard 0 Movement Mouse Keybinds 0 Fullscreen 0 Font 20/SmallcapsGlow Map View 50x35 Zoom Use 15% Tactical HUD 1 Map Filters NONE Filters NONE Steam 1 RUN: 5d2f6719-13c5-491f-bf2a-3eb5ddaf18c9